bitfinex/quotes_BTCUSD_20250829
["timestamp","ask_amount","ask_price","bid_price","bid_amount"]
[1756478205260,0.01605466,108840.0,108830.0,0.87687052]
[1756478205468,0.01605466,108840.0,108830.0,0.87998052]
[1756478206121,0.01605466,108840.0,108830.0,0.87898052]
[1756478206330,0.01505466,108840.0,108830.0,0.87898052]
[1756478206544,0.01505466,108840.0,108830.0,0.88198052]
[1756478206821,0.01505466,108840.0,108830.0,0.88098052]
[1756478206990,0.01505466,108840.0,108830.0,0.98621248]
[1756478207198,0.01505466,108840.0,108830.0,0.98721248]
[1756478207555,0.01505466,108840.0,108830.0,0.97027684]
[1756478207902,0.01705466,108840.0,108830.0,0.97027684]
[1756478208525,0.01505466,108840.0,108830.0,0.96627684]
[1756478208757,0.01711466,108840.0,108830.0,0.87487052]
[1756478208978,0.01711466,108840.0,108830.0,0.42306917]
[1756478209213,0.01714618,108840.0,108830.0,0.42506917]
[1756478210098,0.20390215,108840.0,108830.0,0.24129632]
[1756478210234,0.20090215,108840.0,108830.0,0.24129632]
[1756478210457,0.20390215,108840.0,108830.0,0.151]
[1756478210889,0.20390215,108840.0,108830.0,0.15]
[1756478211267,0.20490215,108840.0,108830.0,0.15]
[1756478211467,0.18377285,108830.0,108820.0,0.63727272]
[1756478211687,0.2005757,108830.0,108820.0,0.63727272]
[1756478211887,0.2035757,108830.0,108820.0,0.27350983]
[1756478212063,0.2035757,108830.0,108820.0,0.04048298]
[1756478212334,0.2035757,108830.0,108820.0,0.1]
[1756478212479,0.18378974,108820.0,108810.0,0.05]
[1756478212681,0.20061547,108820.0,108810.0,0.1]
[1756478212890,0.20361547,108820.0,108810.0,0.05]
[1756478213095,0.20361547,108820.0,108810.0,0.18766177]
[1756478213292,0.74275314,108820.0,108810.0,0.1]
[1756478213572,0.18382701,108810.0,108800.0,0.05]
[1756478213799,0.18382701,108810.0,108790.0,0.05]
[1756478213800,0.18382352,108800.0,108790.0,0.05]
[1756478214039,0.20064925,108800.0,108790.0,0.23384042]
[1756478214243,0.01682573,108800.0,108790.0,0.42213674]
[1756478214428,0.20064925,108800.0,108790.0,0.27213674]
[1756478214578,0.20064925,108800.0,108790.0,0.1]
[1756478214988,0.20064925,108800.0,108790.0,0.15]
[1756478215371,0.18682701,108810.0,108800.0,0.1]
[1756478215604,0.27365333,108810.0,108800.0,0.14186964]
[1756478216017,0.27620333,108810.0,108800.0,0.14186964]
[1756478216340,0.29011057,108810.0,108800.0,0.14186964]
[1756478216541,0.29011057,108810.0,108800.0,0.17944063]
[1756478217724,0.74350192,108810.0,108800.0,0.001]
[1756478218441,0.8311444,108810.0,108800.0,0.001]
[1756478218649,1.19208322,108810.0,108800.0,0.001]
[1756478219969,1.19208322,108810.0,108780.0,0.19063457]
[1756478219970,1.19208597,108810.0,108780.0,0.19063457]
[1756478220196,0.18384042,108790.0,108780.0,0.19063457]
[1756478220395,0.3709809,108810.0,108790.0,0.33677042]
[1756478220623,0.18382352,108800.0,108790.0,0.15293]
[1756478220825,0.2007919,108800.0,108790.0,0.15496]
[1756478221376,0.29360822,108800.0,108790.0,0.1]
[1756478221578,0.18384042,108790.0,108780.0,0.19263457]
[1756478221834,0.27211984,108800.0,108790.0,0.1]
[1756478221987,0.29107359,108800.0,108790.0,0.1]
[1756478222438,0.18384042,108790.0,108780.0,0.19263457]
[1756478222639,0.29110049,108790.0,108780.0,0.19263457]
[1756478222837,0.28911049,108790.0,108780.0,0.19466457]
[1756478222995,0.28911049,108790.0,108780.0,0.2315183]
[1756478223202,0.28911049,108790.0,108780.0,0.2344483]
[1756478223628,0.01697375,108790.0,108780.0,0.86914697]
[1756478223830,0.18382394,108800.0,108790.0,0.101]
[1756478224034,0.20079694,108800.0,108790.0,0.33980042]
[1756478224231,0.20079694,108800.0,108790.0,0.42809674]
[1756478224408,0.016973,108800.0,108790.0,0.42809674]
[1756478224614,0.20079652,108800.0,108790.0,0.24425632]
[1756478224969,0.20079652,108800.0,108790.0,0.42709674]
[1756478225197,0.016973,108800.0,108790.0,0.42709674]
[1756478225615,0.20079652,108800.0,108790.0,0.24325632]
[1756478225832,0.20079652,108800.0,108790.0,0.42709674]
[1756478226045,0.20079652,108800.0,108790.0,0.24325632]
[1756478226265,0.29107284,108800.0,108790.0,0.1]
[1756478226460,0.74445419,108800.0,108790.0,0.001]
[1756478227368,0.75929517,108800.0,108790.0,0.001]
[1756478228064,0.75929517,108800.0,108790.0,0.1]
[1756478228266,0.75775517,108800.0,108790.0,0.1]
[1756478228655,0.30591382,108800.0,108790.0,0.1]
[1756478228886,0.30393382,108800.0,108790.0,0.19240915]
[1756478229106,0.18384042,108790.0,108780.0,0.19063457]
[1756478229310,0.18385732,108780.0,108770.0,0.15]
[1756478229511,0.19869799,108780.0,108770.0,0.1550077]
[1756478229916,0.28905431,108780.0,108770.0,0.1520777]
[1756478230059,0.28905431,108780.0,108770.0,0.1500477]
[1756478230267,0.19869799,108780.0,108770.0,0.37685011]
[1756478230462,0.20075799,108780.0,108770.0,0.19109202]
[1756478230670,0.74235566,108780.0,108770.0,4.77e-05]
[1756478230873,0.81307566,108780.0,108770.0,4.77e-05]
[1756478231076,0.10313699,108780.0,108770.0,0.78972328]
[1756478231462,0.03180105,108780.0,108770.0,0.41985426]
[1756478231653,0.0254407,108780.0,108770.0,0.87069561]
[1756478231851,0.00848032,108780.0,108770.0,1.29899193]
[1756478232053,0.00848032,108780.0,108770.0,0.84815058]
[1756478232260,0.00848032,108780.0,108770.0,1.21069561]
[1756478232612,0.00848032,108780.0,108770.0,1.21169561]
[1756478233074,0.00848032,108780.0,108770.0,1.25189736]
[1756478233483,0.19301516,108800.0,108790.0,0.28384042]
[1756478233644,0.20785815,108800.0,108790.0,0.28384042]
[1756478234026,0.20983815,108800.0,108790.0,0.1]
[1756478234253,0.19866698,108800.0,108790.0,0.28587042]
[1756478234458,0.03180746,108800.0,108790.0,0.86211518]
[1756478234664,0.21563098,108800.0,108790.0,0.41127383]
[1756478235067,0.03180746,108800.0,108790.0,0.41127383]
[1756478235350,0.03180746,108800.0,108790.0,0.41327383]
[1756478235565,0.03180746,108800.0,108790.0,0.41427383]
[1756478235746,0.21761098,108800.0,108790.0,0.33887042]
[1756478235992,0.03180746,108800.0,108790.0,0.34180042]
[1756478236410,0.03180746,108800.0,108790.0,0.79264177]
[1756478236790,0.03180746,108800.0,108790.0,0.34180042]
[1756478236992,0.03180746,108800.0,108790.0,0.84520614]
[1756478237965,0.03180746,108800.0,108790.0,0.39436479]
[1756478238543,0.21565051,108800.0,108790.0,0.39436479]
[1756478238741,0.21565051,108800.0,108790.0,0.153]
[1756478238742,0.21763051,108800.0,108790.0,0.153]
[1756478238897,0.30592683,108800.0,108790.0,0.153]
[1756478239122,0.30592683,108800.0,108790.0,0.33684042]
[1756478239324,0.30394683,108800.0,108790.0,0.15806]
[1756478239532,0.30394683,108800.0,108790.0,0.34190042]
[1756478239861,0.30594916,108800.0,108790.0,0.153]
[1756478240397,0.30595152,108800.0,108790.0,0.153]
[1756478241245,0.30595152,108800.0,108790.0,0.24129632]
[1756478241422,0.30397152,108800.0,108790.0,0.42718674]
[1756478241623,0.03185168,108800.0,108790.0,0.88103809]
[1756478241805,0.03185168,108800.0,108790.0,0.43019674]
[1756478242013,0.03185168,108800.0,108790.0,0.88103809]
[1756478242407,0.2156752,108800.0,108790.0,0.88103809]
[1756478242611,0.2176552,108800.0,108790.0,0.153]
[1756478242853,0.30595152,108800.0,108790.0,0.153]
[1756478243222,0.75570264,108800.0,108790.0,0.103]
[1756478243606,0.75824264,108800.0,108790.0,0.003]
[1756478243815,0.30849152,108800.0,108790.0,0.003]
[1756478244072,0.30849152,108800.0,108790.0,0.103]
[1756478244244,0.30595152,108800.0,108790.0,0.03668564]
[1756478244483,0.30595152,108800.0,108790.0,0.13668564]
[1756478244691,0.30595152,108800.0,108790.0,0.36852606]
[1756478244910,0.11377814,108800.0,108790.0,0.37358606]
[1756478245115,0.02548182,108800.0,108790.0,0.82233718]
[1756478245948,0.02548182,108800.0,108790.0,0.37258606]
[1756478246152,0.20930534,108800.0,108790.0,0.37258606]
[1756478246366,0.21128534,108800.0,108790.0,0.15]
[1756478246616,0.20930534,108800.0,108790.0,0.15205]
[1756478246803,0.21128534,108800.0,108790.0,0.15]
[1756478247233,0.20930534,108800.0,108790.0,0.33589042]
[1756478247440,0.21129534,108800.0,108790.0,0.33589042]
[1756478247997,0.20930534,108800.0,108790.0,0.42418674]
[1756478248319,0.29959166,108800.0,108790.0,0.15]
[1756478249661,0.11576814,108800.0,108790.0,0.33589042]
[1756478249890,0.29959166,108800.0,108790.0,0.33589042]
[1756478250307,0.29959507,108800.0,108790.0,0.33589042]
[1756478250537,0.29959357,108800.0,108790.0,0.33589042]
[1756478250752,0.29959357,108800.0,108790.0,0.59788032]
[1756478250961,0.29959389,108800.0,108790.0,0.457534]
[1756478251169,0.30596443,108800.0,108790.0,0.507534]
[1756478251579,0.30397443,108800.0,108790.0,0.69643442]
[1756478251782,0.03185459,108800.0,108790.0,0.69643442]
[1756478251993,0.03185459,108800.0,108790.0,0.78473074]
[1756478252204,0.21567811,108800.0,108790.0,0.78473074]
[1756478252396,0.21567811,108800.0,108790.0,0.78251739]
[1756478252602,0.03185598,108800.0,108790.0,0.78251739]
[1756478252812,0.02548405,108800.0,108790.0,0.78251739]
[1756478253101,0.20930757,108800.0,108790.0,0.78251739]
[1756478253305,0.21568036,108800.0,108790.0,0.78251739]
[1756478253644,0.03185684,108800.0,108790.0,0.78251739]
[1756478253893,0.21568036,108800.0,108790.0,0.78251739]
[1756478254049,0.03185684,108800.0,108790.0,0.78251739]
[1756478254253,0.21568036,108800.0,108790.0,0.78251739]
[1756478255340,0.21568036,108800.0,108790.0,0.78451739]
[1756478255773,0.02548405,108800.0,108790.0,1.23426851]
[1756478255989,0.02548405,108800.0,108790.0,1.23626851]
[1756478256417,0.02548405,108800.0,108790.0,1.32456483]
[1756478256664,0.02548405,108800.0,108790.0,1.35404115]
[1756478257299,0.01698972,108800.0,108790.0,1.35404115]
[1756478257714,0.34,108830.0,108820.0,0.33378974]
[1756478257936,0.21760842,108830.0,108820.0,0.15]
[1756478259054,0.21875172,108830.0,108820.0,0.15]
[1756478259290,0.21875172,108830.0,108820.0,0.33378974]
[1756478259485,0.21875172,108830.0,108820.0,0.33583974]
[1756478259722,0.25091704,108830.0,108820.0,0.33583974]
[1756478259923,0.25091704,108830.0,108820.0,0.33378974]
[1756478260131,0.06714419,108830.0,108820.0,0.33378974]
[1756478260331,0.06516419,108830.0,108820.0,0.33884974]
[1756478260534,0.25091704,108830.0,108820.0,0.33583974]
[1756478260872,0.24453088,108830.0,108820.0,0.33884974]
[1756478261061,0.25089823,108830.0,108820.0,0.33884974]
[1756478261463,0.01863647,108830.0,108820.0,0.33884974]
[1756478261774,0.20240932,108830.0,108820.0,0.39527899]
[1756478262000,0.01863647,108830.0,108820.0,0.39527899]
[1756478262735,0.01863647,108830.0,108820.0,0.84503011]
[1756478262943,0.01963647,108830.0,108820.0,0.84503011]
[1756478263189,0.01963647,108830.0,108820.0,0.93332643]
[1756478263363,0.01863647,108830.0,108820.0,0.93432643]
[1756478264500,0.01863647,108830.0,108820.0,1.27432643]
[1756478264897,0.01863647,108830.0,108820.0,1.27332643]
[1756478265266,0.0084898,108830.0,108820.0,1.34500643]
[1756478265463,0.0002,108840.0,108830.0,0.18377285]
[1756478265705,0.0002,108840.0,108830.0,0.96312661]
[1756478265904,0.0002,108840.0,108830.0,0.96517661]
[1756478266108,0.0086806,108840.0,108830.0,0.96517661]
[1756478266826,0.0086806,108840.0,108830.0,0.96817661]
[1756478267040,0.0086806,108840.0,108830.0,1.30817661]
[1756478268026,0.0086806,108840.0,108830.0,1.28580061]
[1756478268226,0.0086806,108840.0,108830.0,0.45269317]
[1756478268227,0.0095906,108840.0,108830.0,0.45269317]
[1756478268407,0.0095906,108840.0,108830.0,0.45569317]
[1756478268607,0.19334657,108840.0,108830.0,0.180624]
[1756478268832,0.19334657,108840.0,108830.0,0.103]
[1756478269032,0.19334657,108840.0,108830.0,0.28877285]
[1756478269241,0.19334657,108840.0,108830.0,0.33977285]
[1756478269654,0.19334657,108840.0,108830.0,0.108]
[1756478269872,0.19334657,108840.0,108830.0,0.157]
[1756478270082,0.19334657,108840.0,108830.0,0.33577285]
[1756478270281,0.73139401,108840.0,108830.0,0.102]
[1756478270435,1.07196401,108840.0,108830.0,0.003]
[1756478270662,0.69232289,108840.0,108830.0,0.103]
[1756478271065,0.69232289,108840.0,108830.0,0.37045179]
[1756478271260,0.0802706,108840.0,108830.0,0.33877285]
[1756478271504,0.07088,108840.0,108830.0,0.34187285]
[1756478271713,0.00866922,108840.0,108830.0,0.79162397]
[1756478271920,0.00866922,108840.0,108830.0,0.87792029]
[1756478271921,0.00966922,108840.0,108830.0,0.87792029]
[1756478272125,0.00967067,108840.0,108830.0,0.96521661]
[1756478272480,0.00867067,108840.0,108830.0,0.51546549]
[1756478272685,0.00867067,108840.0,108830.0,0.96521661]
[1756478273125,0.00867067,108840.0,108830.0,0.51546549]
[1756478273325,0.00967067,108840.0,108830.0,0.96621661]
[1756478273550,0.0266041,108840.0,108830.0,0.96721661]
[1756478273991,0.0266041,108840.0,108830.0,0.96921661]
[1756478274449,0.0266041,108840.0,108830.0,0.99684261]
[1756478274643,0.12146132,108860.0,108850.0,0.28373909]
[1756478274850,0.00726042,108860.0,108850.0,0.312113]
[1756478275045,0.19098263,108860.0,108850.0,0.312113]
[1756478275578,0.00635042,108860.0,108850.0,0.367213]
[1756478276117,0.001,108860.0,108850.0,0.81696412]
[1756478276385,0.002,108860.0,108850.0,0.88636302]
[1756478276647,0.002,108860.0,108850.0,0.4366119]
[1756478276895,0.002,108860.0,108850.0,1.23765934]
[1756478278279,0.002,108860.0,108850.0,0.78790822]
[1756478278512,0.001,108860.0,108850.0,0.6996119]
[1756478278682,0.00091,108860.0,108850.0,0.5996119]
[1756478278912,0.00091,108860.0,108850.0,0.53851499]
[1756478279124,0.18463221,108860.0,108850.0,0.64051499]
[1756478279325,0.18463221,108860.0,108850.0,0.4567759]
[1756478279534,0.63438333,108860.0,108850.0,0.4077759]
[1756478279746,0.63438333,108860.0,108850.0,0.0447759]
[1756478279952,0.63495333,108860.0,108850.0,0.0937759]
[1756478280155,0.18520221,108860.0,108850.0,0.0937759]
[1756478280364,0.72324965,108860.0,108850.0,0.05]
[1756478280571,0.18375288,108850.0,108840.0,0.05]
[1756478280772,0.72237032,108850.0,108840.0,0.05]
[1756478281027,0.18375597,108840.0,108830.0,0.11812597]
[1756478281252,0.18466597,108840.0,108830.0,0.21812597]
[1756478281460,0.26358832,108860.0,108840.0,0.23375597]
[1756478281646,0.15897632,108860.0,108850.0,0.33573909]
[1756478281883,0.25440221,108860.0,108850.0,0.33883909]
[1756478282692,0.07068,108860.0,108850.0,0.33883909]
[1756478283135,0.07268,108860.0,108850.0,0.33883909]
[1756478283351,0.002,108860.0,108850.0,0.87788653]
[1756478283582,0.002,108860.0,108850.0,0.94103595]
[1756478283787,0.002,108860.0,108850.0,0.94203595]
[1756478285168,0.002,108860.0,108850.0,0.94103595]
[1756478285787,0.002,108860.0,108850.0,1.28103595]
[1756478286014,0.002,108860.0,108850.0,1.30197477]
[1756478286422,0.002,108860.0,108850.0,2.22136656]
[1756478286837,1e-08,108860.0,108850.0,2.25170777]
[1756478288115,0.0002,108890.0,108880.0,0.78322375]
[1756478288321,0.00912155,108890.0,108880.0,0.51006527]
[1756478288586,0.00912155,108890.0,108880.0,0.96491639]
[1756478289008,0.00912155,108890.0,108880.0,1.00650695]
[1756478289215,0.01003155,108890.0,108880.0,0.46335951]
[1756478289417,0.01003155,108890.0,108880.0,0.49097451]
[1756478289621,0.01003155,108890.0,108880.0,0.44097451]
[1756478289859,0.19370314,108890.0,108880.0,0.40289402]
[1756478290066,0.02690122,108890.0,108880.0,0.37827902]
[1756478290273,0.66032393,108890.0,108880.0,0.19459056]
[1756478290485,0.66089393,108890.0,108880.0,0.19559056]
[1756478290700,0.73153393,108890.0,108880.0,0.007]
[1756478290876,0.18368846,108880.0,108870.0,0.15]
[1756478291033,0.65966294,108880.0,108870.0,0.15]
[1756478291244,0.65966294,108880.0,108860.0,0.28345833]
[1756478291245,0.16370533,108870.0,108860.0,0.127622]
[1756478291468,0.16370533,108870.0,108840.0,0.18375597]
[1756478291469,0.18373038,108860.0,108840.0,0.19294376]
[1756478291669,0.20902934,108860.0,108850.0,0.33373909]
[1756478291875,0.20993934,108860.0,108850.0,0.27479464]
[1756478292224,0.65969046,108860.0,108850.0,0.09105555]
[1756478292449,0.65969046,108860.0,108850.0,0.19105555]
[1756478292654,0.74855678,108860.0,108850.0,0.09105555]
[1756478292902,0.74855678,108860.0,108850.0,0.1]
[1756478293235,0.20993934,108860.0,108850.0,0.15]
[1756478293364,0.2403259,108860.0,108850.0,0.1]
[1756478293566,0.18373909,108850.0,108840.0,0.33375597]
[1756478293841,0.02529896,108850.0,108840.0,0.39871185]
[1756478294042,0.02529896,108850.0,108840.0,0.85156297]
[1756478294267,0.02529896,108850.0,108840.0,0.40181185]
[1756478294596,0.00843294,108850.0,108840.0,0.85156297]
[1756478294845,0.3699092,108870.0,108860.0,0.28372221]
[1756478295026,0.24033483,108870.0,108860.0,0.28372221]
[1756478295231,0.69008595,108870.0,108860.0,0.1]
[1756478295432,0.77838227,108870.0,108860.0,0.18246019]
[1756478295797,0.78528344,108870.0,108860.0,0.15]
[1756478296003,0.78528344,108870.0,108860.0,0.094]
[1756478296203,0.18372221,108860.0,108850.0,0.18487792]
[1756478296415,0.65971606,108860.0,108850.0,0.18487792]
[1756478296618,0.65971606,108860.0,108850.0,0.36861701]
[1756478296825,0.74858238,108860.0,108850.0,0.144]
[1756478297040,0.74858238,108860.0,108850.0,0.05]
[1756478297217,0.18373909,108850.0,108840.0,0.05]
[1756478297461,0.65882294,108850.0,108840.0,0.05]
[1756478297677,0.65882294,108850.0,108830.0,0.2437413]
[1756478297678,0.18375597,108840.0,108830.0,0.2437413]
[1756478297850,0.65883982,108840.0,108830.0,0.2161143]
[1756478298051,0.2099987,108840.0,108830.0,0.25733362]
[1756478298252,0.2099987,108840.0,108830.0,0.144]
[1756478298253,0.74804614,108840.0,108830.0,0.144]
[1756478298831,0.74804614,108840.0,108830.0,0.32777285]
[1756478299033,0.74804614,108840.0,108830.0,0.144]
[1756478299446,0.18377285,108830.0,108820.0,0.13478113]
[1756478299660,0.18377285,108830.0,108820.0,0.37802206]
[1756478299661,0.02533273,108830.0,108820.0,0.37802206]
[1756478299849,0.02533273,108830.0,108820.0,0.82547581]
[1756478300060,0.02533273,108830.0,108820.0,0.37572469]
[1756478300275,0.02533273,108830.0,108820.0,0.82547581]
[1756478300482,0.02533273,108830.0,108820.0,0.91377213]
[1756478300679,0.02533273,108830.0,108820.0,0.91477213]
[1756478300880,0.00844424,108830.0,108820.0,0.41502101]
[1756478301006,0.00844424,108830.0,108820.0,0.82647581]
[1756478301208,0.00944424,108830.0,108820.0,0.37672469]
[1756478301427,0.24832991,108830.0,108820.0,0.32878974]
[1756478301629,0.21100401,108830.0,108820.0,0.32878974]
[1756478301837,0.19412709,108830.0,108820.0,0.145]
[1756478302035,0.2109905,108830.0,108820.0,0.144]
[1756478302296,0.66074162,108830.0,108820.0,0.144]
[1756478302429,0.66074162,108830.0,108820.0,0.146]
[1756478302646,0.02630765,108830.0,108820.0,0.33727711]
[1756478302849,0.02630765,108830.0,108820.0,0.33697974]
[1756478303059,0.02530765,108830.0,108820.0,0.33497974]
[1756478303268,0.2090805,108830.0,108820.0,0.33078974]
[1756478303476,0.02630765,108830.0,108820.0,0.33597974]
[1756478303703,0.02630765,108830.0,108820.0,0.39922994]
[1756478304349,0.02630765,108830.0,108820.0,0.93727738]
[1756478304350,0.00943588,108830.0,108820.0,0.93727738]
[1756478305052,0.00943588,108830.0,108820.0,0.39922994]
[1756478305267,0.02630526,108830.0,108820.0,0.39922994]
[1756478305486,0.00943588,108830.0,108820.0,0.39922994]
[1756478305910,0.00943588,108830.0,108820.0,0.84898106]
[1756478306767,0.00943588,108830.0,108820.0,0.39922994]
[1756478306969,0.02630696,108830.0,108820.0,0.39922994]
[1756478307173,0.00943588,108830.0,108820.0,0.39922994]
[1756478308929,0.00943588,108830.0,108820.0,0.42685994]
[1756478309351,0.19320873,108830.0,108820.0,0.1878802]
[1756478309552,0.19320873,108830.0,108820.0,0.147]
[1756478309553,0.64386985,108830.0,108820.0,0.147]
[1756478309682,0.64386985,108830.0,108820.0,0.33078974]
[1756478309683,0.66074668,108830.0,108820.0,0.33078974]
[1756478310062,0.21099556,108830.0,108820.0,0.147]
[1756478310510,1.089043,108830.0,108820.0,0.097]
[1756478310719,1.160293,108830.0,108820.0,0.003]
[1756478311794,0.72492671,108830.0,108820.0,0.003]
[1756478312004,1.160293,108830.0,108820.0,0.003]
[1756478312221,6.16661587,108830.0,108820.0,0.003]
[1756478312431,6.16659751,108830.0,108820.0,0.003]
[1756478312690,0.52382352,108800.0,108790.0,0.57143495]
[1756478312928,0.42829632,108800.0,108790.0,0.75740867]
[1756478313131,0.61211984,108800.0,108790.0,0.76060867]
[1756478313334,0.61211984,108800.0,108790.0,0.75541867]
[1756478313539,0.42829632,108800.0,108790.0,0.76060867]
[1756478314034,0.34,108800.0,108790.0,0.84990499]
[1756478314230,0.56094351,108810.0,108800.0,0.32782352]
[1756478314432,1.09990095,108810.0,108800.0,0.144]
[1756478314724,1.09990095,108810.0,108800.0,0.094]
[1756478314934,0.91516937,108810.0,108800.0,0.28301352]
[1756478315173,1.098976,108810.0,108800.0,0.18153165]
[1756478315349,1.098976,108810.0,108800.0,0.27782352]
[1756478315573,1.098976,108810.0,108800.0,0.094]
[1756478315874,1.099886,108810.0,108800.0,0.094]
[1756478316415,1.099886,108810.0,108800.0,0.095]
[1756478316653,1.10888441,108810.0,108800.0,0.002]
[1756478316860,1.10888441,108810.0,108800.0,0.001]
[1756478317424,1.2140427,108810.0,108800.0,0.001]
[1756478317649,1.2140427,108810.0,108790.0,0.35546395]
[1756478317650,0.18382352,108800.0,108790.0,0.35546395]
[1756478317851,1.13346096,108800.0,108790.0,0.35546395]
[1756478318068,1.13346096,108800.0,108790.0,0.45266395]
[1756478318627,1.13346096,108800.0,108790.0,0.63650437]
[1756478318828,1.13255096,108800.0,108790.0,0.45465395]
[1756478319049,0.49897632,108800.0,108790.0,0.75734536]
[1756478319257,0.68279984,108800.0,108790.0,0.75734536]
[1756478319473,0.68279984,108800.0,108790.0,0.57350494]
[1756478319681,1.13255096,108800.0,108790.0,0.75734536]
[1756478319886,0.94872744,108800.0,108790.0,0.68849437]
[1756478320093,0.15897632,108800.0,108790.0,0.68849437]
[1756478320360,0.15897632,108800.0,108790.0,0.68949437]
[1756478320580,0.52043112,108800.0,108790.0,0.68949437]
[1756478320813,0.84126037,108810.0,108800.0,0.32782352]
[1756478321037,0.56937993,108810.0,108800.0,0.33301352]
[1756478322370,0.58629749,108810.0,108800.0,0.33301352]
[1756478322795,0.83532442,108810.0,108800.0,0.33301352]
[1756478323041,0.83533082,108810.0,108800.0,0.33301352]
[1756478323268,1.01913745,108810.0,108800.0,0.14919]
[1756478323495,1.01913745,108810.0,108800.0,0.144]
[1756478323496,1.03696507,108810.0,108800.0,0.144]
[1756478323937,0.58721395,108810.0,108800.0,0.144]
[1756478324170,1.04330725,108810.0,108800.0,0.21265016]
[1756478324596,1.13160357,108810.0,108800.0,0.16265016]
[1756478324825,1.13160357,108810.0,108800.0,0.144]
[1756478325489,0.52382352,108800.0,108790.0,0.35546395]
[1756478325722,1.08724635,108800.0,108790.0,0.44946395]
[1756478325960,1.08815635,108800.0,108790.0,0.35546395]
[1756478326188,2.0134621,108800.0,108790.0,0.35546395]
[1756478326931,2.0134621,108800.0,108790.0,0.35646395]
[1756478327169,2.0134621,108800.0,108790.0,0.35746395]
[1756478328292,2.02785004,108800.0,108790.0,0.35746395]
[1756478328514,2.02728004,108800.0,108790.0,0.35746395]
[1756478328718,2.02785004,108800.0,108790.0,0.35746395]
[1756478328927,1.10888825,108800.0,108790.0,0.35646395]
[1756478329133,1.10888825,108800.0,108790.0,0.35546395]
[1756478329342,2.02785004,108800.0,108790.0,0.35546395]
[1756478329543,2.02732177,108800.0,108790.0,0.35546395]
[1756478330898,1.10835998,108800.0,108790.0,0.35546395]
[1756478331131,2.02732177,108800.0,108790.0,0.35497678]
[1756478331794,2.01236383,108800.0,108790.0,0.35497678]
[1756478332223,2.01293383,108800.0,108790.0,0.35497678]
[1756478332456,2.01236383,108800.0,108790.0,0.35497678]
[1756478333085,2.01206383,108800.0,108790.0,0.35497678]
[1756478333296,2.10093015,108800.0,108790.0,0.35497678]
[1756478333677,2.10087647,108800.0,108790.0,0.35497678]
[1756478334080,2.12181529,108800.0,108790.0,1e-08]
[1756478334277,7.12181529,108800.0,108790.0,1e-08]
[1756478335751,7.13620609,108800.0,108790.0,1e-08]
[1756478335928,0.63360844,108780.0,108770.0,0.06511431]
[1756478336089,0.90265362,108780.0,108770.0,0.06516201]
[1756478336295,0.36460618,108780.0,108770.0,0.07031201]
[1756478336508,0.8143573,108780.0,108770.0,0.07031201]
[1756478336711,0.8152673,108780.0,108770.0,0.06516201]
[1756478336911,0.8143573,108780.0,108770.0,0.07031201]
[1756478337323,0.8143573,108780.0,108770.0,0.07231201]
[1756478337772,1.1543573,108780.0,108770.0,0.07231201]
[1756478338013,0.70460618,108780.0,108770.0,0.07231201]
[1756478338173,1.1543573,108780.0,108770.0,0.07231201]
[1756478339029,1.15375309,108780.0,108770.0,0.0071977]
[1756478340167,1.15375309,108780.0,108770.0,0.19107193]
[1756478340369,1.15375309,108780.0,108770.0,0.1511977]
[1756478340599,1.15376102,108780.0,108770.0,0.0571977]
[1756478340795,1.15376102,108780.0,108770.0,0.33507193]
[1756478341613,0.7040099,108780.0,108770.0,0.33507193]
[1756478341827,1.15376102,108780.0,108770.0,0.1511977]
[1756478342131,1.15376102,108780.0,108770.0,0.33507193]
[1756478342474,1.15376971,108780.0,108770.0,0.33507193]
[1756478342676,0.9033966,108780.0,108770.0,0.33507193]
[1756478343124,0.90344123,108780.0,108770.0,0.33507193]
[1756478343331,1.08729855,108780.0,108770.0,0.33507193]
[1756478343551,0.45369011,108780.0,108770.0,0.33507193]
[1756478343809,0.02539379,108780.0,108770.0,0.33507193]
[1756478344013,0.02539271,108780.0,108770.0,0.33507193]
[1756478344437,0.02214271,108780.0,108770.0,0.89405819]
[1756478344576,0.02214271,108780.0,108770.0,1.0194099]
[1756478345700,0.02214271,108780.0,108770.0,0.98235451]
[1756478345701,0.01367958,108780.0,108770.0,0.98235451]
[1756478345866,0.02214169,108780.0,108770.0,0.98135451]
[1756478346238,0.02214169,108780.0,108770.0,0.98235451]
[1756478346459,0.01367958,108780.0,108770.0,0.98335451]
[1756478346831,0.01367958,108780.0,108770.0,0.97378749]
[1756478347180,0.01367958,108780.0,108770.0,0.52703637]
[1756478347379,1.01383025,108810.0,108800.0,0.094]
[1756478347583,1.0307784,108810.0,108800.0,0.094]
[1756478348092,1.0307784,108810.0,108800.0,0.27782352]
[1756478349256,1.0307784,108810.0,108800.0,0.27882352]
[1756478349460,0.58102728,108810.0,108800.0,0.27882352]
[1756478349604,0.58102728,108810.0,108800.0,0.095]
[1756478349816,0.58102728,108810.0,108800.0,0.27882352]
[1756478350017,0.39407008,108810.0,108800.0,0.28092352]
[1756478350261,0.38772373,108810.0,108800.0,0.28092352]
[1756478350472,0.38558373,108810.0,108800.0,0.3204542]
[1756478351219,0.0084618,108810.0,108800.0,0.77325532]
[1756478351441,0.0084618,108810.0,108800.0,0.3235042]
[1756478351650,0.0084618,108810.0,108800.0,0.77325532]
[1756478352068,0.0084618,108810.0,108800.0,0.86155164]
[1756478352526,0.0084618,108810.0,108800.0,0.94884796]
[1756478352899,0.0084618,108810.0,108800.0,0.95084796]
[1756478353129,0.0084618,108810.0,108800.0,0.50109684]
[1756478353318,0.0084618,108810.0,108800.0,0.95084796]
[1756478353532,0.0084618,108810.0,108800.0,0.97178678]
[1756478353734,0.34,108830.0,108820.0,0.27778974]
[1756478353964,0.014834,108830.0,108820.0,0.81532966]
[1756478354154,0.0084765,108830.0,108820.0,0.81837966]
[1756478354954,0.00856429,108830.0,108820.0,0.36557854]
[1756478356064,0.19762714,108830.0,108820.0,0.36347854]
[1756478356275,0.19762714,108830.0,108820.0,0.31732042]
[1756478356498,0.21456,108830.0,108820.0,0.31942042]
[1756478356671,0.21456,108830.0,108820.0,0.31732042]
[1756478357359,0.03078715,108830.0,108820.0,0.31732042]
[1756478357688,0.02763715,108830.0,108820.0,0.36953161]
[1756478358576,0.02763715,108830.0,108820.0,0.31942042]
[1756478359400,0.21141,108830.0,108820.0,0.31942042]
[1756478359614,0.02763715,108830.0,108820.0,0.31942042]
[1756478359862,0.02763715,108830.0,108820.0,0.31935042]
[1756478360683,0.02549715,108830.0,108820.0,0.31935042]
[1756478360863,0.02749715,108830.0,108820.0,0.38249984]
[1756478361241,0.02549715,108830.0,108820.0,0.83225096]
[1756478361471,0.21127,108830.0,108820.0,0.38249984]
[1756478361685,0.02749715,108830.0,108820.0,0.38249984]